[Event "Titled Tuesday Blitz January 10 Early 2023"]
[White "Bryakin, Mikhail"]
[Black "Svidler, Peter"]
[WhiteFideId "4165314"]
[BlackFideId "4102142"]
[WhiteElo "2455"]
[BlackElo "2683"]
[Result "1/2-1/2"]
[Round "07"]
[TimeControl "180+2"]
[Date "2023.01.10"]
[WhiteClock "0:00:10"]
[BlackClock "0:00:12"]

1. d4 {[%clk 0:02:56]}  Nf6 {[%clk 0:02:59]} 2. Nc3 {[%clk 0:02:55]}  d5 {[%clk 0:02:58]} 3. Bf4 {[%clk 0:02:55]}  a6 {[%clk 0:02:37]} 4. e3 {[%clk 0:02:52]}  Bf5 {[%clk 0:02:30]} 5. Nf3 {[%clk 0:02:35]}  e6 {[%clk 0:02:29]} 6. Ne5 {[%clk 0:02:34]}  h6 {[%clk 0:02:20]} 7. g4 {[%clk 0:02:31]}  Bh7 {[%clk 0:02:16]} 8. h4 {[%clk 0:02:25]}  Nfd7 {[%clk 0:02:10]} 9. Bd3 {[%clk 0:02:20]}  Bxd3 {[%clk 0:01:58]} 10. Qxd3 {[%clk 0:02:09]}  c5 {[%clk 0:01:57]} 11. O-O-O {[%clk 0:02:06]}  Nxe5 {[%clk 0:01:56]} 12. Bxe5 {[%clk 0:01:52]}  Nc6 {[%clk 0:01:56]} 13. Bg3 {[%clk 0:01:50]}  c4 {[%clk 0:01:18]} 14. Qf1 {[%clk 0:01:49]}  Bb4 {[%clk 0:01:15]} 15. Ne2 {[%clk 0:01:42]}  Qa5 {[%clk 0:01:14]} 16. a3 {[%clk 0:01:26]}  c3 {[%clk 0:01:00]} 17. bxc3 {[%clk 0:01:03]}  Bxa3+ {[%clk 0:00:48]} 18. Kd2 {[%clk 0:01:03]}  Qd8 {[%clk 0:00:38]} 19. Nf4 {[%clk 0:00:55]}  Na5 {[%clk 0:00:36]} 20. g5 {[%clk 0:00:56]}  Nc4+ {[%clk 0:00:36]} 21. Ke2 {[%clk 0:00:55]}  hxg5 {[%clk 0:00:27]} 22. hxg5 {[%clk 0:00:56]}  Rxh1 {[%clk 0:00:28]} 23. Qxh1 {[%clk 0:00:56]}  Qxg5 {[%clk 0:00:29]} 24. f3 {[%clk 0:00:39]}  Qe7 {[%clk 0:00:17]} 25. Qh8+ {[%clk 0:00:37]}  Qf8 {[%clk 0:00:17]} 26. Qh7 {[%clk 0:00:38]}  O-O-O {[%clk 0:00:17]} 27. Nd3 {[%clk 0:00:38]}  g6 {[%clk 0:00:16]} 28. Rh1 {[%clk 0:00:31]}  Qe7 {[%clk 0:00:16]} 29. Bh4 {[%clk 0:00:30]}  g5 {[%clk 0:00:16]} 30. Bg3 {[%clk 0:00:29]}  Bd6 {[%clk 0:00:16]} 31. Bf2 {[%clk 0:00:26]}  Kb8 {[%clk 0:00:15]} 32. Qg7 {[%clk 0:00:25]}  Ka7 {[%clk 0:00:16]} 33. Rh7 {[%clk 0:00:26]}  Rd7 {[%clk 0:00:16]} 34. Rh8 {[%clk 0:00:25]}  f5 {[%clk 0:00:16]} 35. Qg8 {[%clk 0:00:24]}  Kb6 {[%clk 0:00:15]} 36. e4 {[%clk 0:00:24]}  fxe4 {[%clk 0:00:14]} 37. fxe4 {[%clk 0:00:24]}  Kb5 {[%clk 0:00:15]} 38. e5 {[%clk 0:00:22]}  Bc7 {[%clk 0:00:15]} 39. Nc5 {[%clk 0:00:20]}  Rd8 {[%clk 0:00:14]} 40. Rh7 {[%clk 0:00:19]}  Qxc5 {[%clk 0:00:12]} 41. Qxd8 {[%clk 0:00:19]}  Bxd8 {[%clk 0:00:12]} 42. dxc5 {[%clk 0:00:19]}  Nxe5 {[%clk 0:00:12]} 43. Rxb7+ {[%clk 0:00:18]}  Kc6 {[%clk 0:00:12]} 44. Ra7 {[%clk 0:00:17]}  a5 {[%clk 0:00:13]} 45. Ra6+ {[%clk 0:00:17]}  Kd7 {[%clk 0:00:13]} 46. Ra7+ {[%clk 0:00:15]}  Kc6 {[%clk 0:00:11]} 47. Ra6+ {[%clk 0:00:15]}  Kd7 {[%clk 0:00:12]} 48. Ra7+ {[%clk 0:00:10]}  Kc6 {[%clk 0:00:12]} 1/2-1/2


[Site "https://www.chess.com"]

[Event "Titled Tuesday Blitz January 10 Early 2023"]
[White "Zhigalko, Sergei"]
[Black "Avila Pavas, Santiago"]
[WhiteFideId "13502956"]
[BlackFideId "4437128"]
[WhiteElo "2572"]
[BlackElo "2522"]
[Result "0-1"]
[Round "07"]
[TimeControl "180+2"]
[Date "2023.01.10"]
[WhiteClock "0:00:01"]
[BlackClock "0:00:06"]

1. e4 {[%clk 0:02:56]}  Nf6 {[%clk 0:03:00]} 2. e5 {[%clk 0:02:55]}  Nd5 {[%clk 0:03:01]} 3. Nf3 {[%clk 0:02:55]}  d6 {[%clk 0:03:01]} 4. d4 {[%clk 0:02:55]}  g6 {[%clk 0:03:01]} 5. Bc4 {[%clk 0:02:55]}  Nb6 {[%clk 0:03:01]} 6. Bb3 {[%clk 0:02:56]}  Bg7 {[%clk 0:03:02]} 7. Qe2 {[%clk 0:02:56]}  O-O {[%clk 0:03:02]} 8. h3 {[%clk 0:02:56]}  c5 {[%clk 0:03:02]} 9. dxc5 {[%clk 0:02:56]}  dxc5 {[%clk 0:03:03]} 10. O-O {[%clk 0:02:56]}  c4 {[%clk 0:03:03]} 11. Bxc4 {[%clk 0:02:56]}  Nxc4 {[%clk 0:03:04]} 12. Qxc4 {[%clk 0:02:56]}  Nc6 {[%clk 0:03:05]} 13. Re1 {[%clk 0:02:52]}  Bf5 {[%clk 0:03:03]} 14. Qe2 {[%clk 0:02:42]}  Qb6 {[%clk 0:02:47]} 15. c3 {[%clk 0:02:32]}  Rfd8 {[%clk 0:02:43]} 16. Be3 {[%clk 0:02:32]}  Qa5 {[%clk 0:02:40]} 17. Bf4 {[%clk 0:02:32]}  Qb6 {[%clk 0:02:15]} 18. b3 {[%clk 0:02:12]}  Qa5 {[%clk 0:02:06]} 19. b4 {[%clk 0:01:52]}  Qa4 {[%clk 0:01:59]} 20. Nbd2 {[%clk 0:01:52]}  Bd3 {[%clk 0:01:47]} 21. Qe3 {[%clk 0:01:51]}  Bc2 {[%clk 0:01:47]} 22. Bh6 {[%clk 0:01:23]}  Rd3 {[%clk 0:01:40]} 23. Qf4 {[%clk 0:01:22]}  Rxc3 {[%clk 0:01:37]} 24. Ng5 {[%clk 0:01:17]}  Bf5 {[%clk 0:00:54]} 25. Bxg7 {[%clk 0:00:43]}  Kxg7 {[%clk 0:00:55]} 26. g4 {[%clk 0:00:09]}  Be6 {[%clk 0:00:40]} 27. a3 {[%clk 0:00:10]}  Rd8 {[%clk 0:00:17]} 28. Ndf3 {[%clk 0:00:08]}  h6 {[%clk 0:00:13]} 29. Nxe6+ {[%clk 0:00:05]}  fxe6 {[%clk 0:00:14]} 30. Re3 {[%clk 0:00:04]}  Rxe3 {[%clk 0:00:10]} 31. Qxe3 {[%clk 0:00:05]}  Qc2 {[%clk 0:00:10]} 32. Re1 {[%clk 0:00:01]}  Rd3 {[%clk 0:00:10]} 33. Qf4 {[%clk 0:00:01]}  Qc3 {[%clk 0:00:06]} 0-1


[Site "https://www.chess.com"]

[Event "Titled Tuesday Blitz January 10 Early 2023"]
[White "Murzin, Volodar"]
[Black "Rozman, Levy"]
[WhiteFideId "44155573"]
[BlackFideId "2039877"]
[WhiteElo "2604"]
[BlackElo "2322"]
[Result "1-0"]
[Round "07"]
[TimeControl "180+2"]
[Date "2023.01.10"]
[WhiteClock "0:00:13"]
[BlackClock "0:00:15"]

1. e4 {[%clk 0:02:59]}  e6 {[%clk 0:02:58]} 2. d3 {[%clk 0:02:58]}  d5 {[%clk 0:02:58]} 3. Qe2 {[%clk 0:02:58]}  Nc6 {[%clk 0:02:57]} 4. Nf3 {[%clk 0:02:56]}  e5 {[%clk 0:02:58]} 5. exd5 {[%clk 0:02:55]}  Qxd5 {[%clk 0:02:59]} 6. Nc3 {[%clk 0:02:55]}  Bb4 {[%clk 0:02:58]} 7. Bd2 {[%clk 0:02:55]}  Bxc3 {[%clk 0:02:58]} 8. Bxc3 {[%clk 0:02:54]}  f6 {[%clk 0:02:58]} 9. Qe4 {[%clk 0:01:38]}  Nge7 {[%clk 0:02:55]} 10. Be2 {[%clk 0:01:26]}  Be6 {[%clk 0:02:51]} 11. Qxd5 {[%clk 0:01:16]}  Nxd5 {[%clk 0:02:48]} 12. Nd2 {[%clk 0:01:09]}  O-O-O {[%clk 0:02:46]} 13. Bf3 {[%clk 0:01:07]}  Rhe8 {[%clk 0:02:44]} 14. O-O-O {[%clk 0:00:59]}  Nxc3 {[%clk 0:02:39]} 15. bxc3 {[%clk 0:01:00]}  Bd5 {[%clk 0:02:26]} 16. Rhe1 {[%clk 0:00:56]}  Bxf3 {[%clk 0:02:13]} 17. Nxf3 {[%clk 0:00:57]}  Rd7 {[%clk 0:02:05]} 18. g4 {[%clk 0:00:52]}  Re6 {[%clk 0:01:53]} 19. h4 {[%clk 0:00:50]}  h6 {[%clk 0:01:47]} 20. h5 {[%clk 0:00:48]}  Ne7 {[%clk 0:01:43]} 21. c4 {[%clk 0:00:44]}  Ra6 {[%clk 0:01:41]} 22. Kb2 {[%clk 0:00:39]}  Rdd6 {[%clk 0:01:37]} 23. Nd2 {[%clk 0:00:33]}  Rdb6+ {[%clk 0:01:32]} 24. Nb3 {[%clk 0:00:33]}  Nc6 {[%clk 0:01:31]} 25. f4 {[%clk 0:00:23]}  Kd8 {[%clk 0:01:17]} 26. Re4 {[%clk 0:00:20]}  Rb4 {[%clk 0:01:12]} 27. fxe5 {[%clk 0:00:20]}  Nxe5 {[%clk 0:01:12]} 28. Kc3 {[%clk 0:00:20]}  Rbb6 {[%clk 0:01:07]} 29. d4 {[%clk 0:00:20]}  Nf7 {[%clk 0:00:54]} 30. Rde1 {[%clk 0:00:18]}  Nd6 {[%clk 0:00:49]} 31. Re7 {[%clk 0:00:17]}  Rxa2 {[%clk 0:00:39]} 32. c5 {[%clk 0:00:17]}  Rc6 {[%clk 0:00:37]} 33. Kd3 {[%clk 0:00:16]}  a5 {[%clk 0:00:18]} 34. d5 {[%clk 0:00:13]}  Ra6 {[%clk 0:00:15]} 35. cxd6 {[%clk 0:00:13]}  Rxd6 {[%clk 0:00:15]} 36. Re8+ {[%clk 0:00:13]} 1-0


[Site "https://www.chess.com"]

[Event "Titled Tuesday Blitz January 10 Early 2023"]
[White "Koellner, Ruben Gideon"]
[Black "Bacrot, Etienne"]
[WhiteFideId "12993093"]
[BlackFideId "605506"]
[WhiteElo "2426"]
[BlackElo "2667"]
[Result "1-0"]
[Round "07"]
[TimeControl "180+2"]
[Date "2023.01.10"]
[WhiteClock "0:00:04"]
[BlackClock "0:00:04"]

1. d4 {[%clk 0:03:00]}  Nf6 {[%clk 0:02:59]} 2. Bg5 {[%clk 0:02:57]}  d5 {[%clk 0:02:58]} 3. e3 {[%clk 0:02:57]}  c5 {[%clk 0:02:58]} 4. Bxf6 {[%clk 0:02:56]}  gxf6 {[%clk 0:02:57]} 5. dxc5 {[%clk 0:02:56]}  Nc6 {[%clk 0:02:58]} 6. Bb5 {[%clk 0:02:55]}  e5 {[%clk 0:02:55]} 7. c4 {[%clk 0:02:51]}  a6 {[%clk 0:02:38]} 8. Ba4 {[%clk 0:02:35]}  Be6 {[%clk 0:02:17]} 9. cxd5 {[%clk 0:02:17]}  Bxd5 {[%clk 0:02:14]} 10. Nf3 {[%clk 0:02:17]}  Bxc5 {[%clk 0:02:09]} 11. Nc3 {[%clk 0:02:16]}  Bb4 {[%clk 0:02:06]} 12. Rc1 {[%clk 0:02:11]}  Qa5 {[%clk 0:01:51]} 13. Bb3 {[%clk 0:01:45]}  Rd8 {[%clk 0:01:24]} 14. Bxd5 {[%clk 0:01:30]}  Rxd5 {[%clk 0:01:25]} 15. Qb3 {[%clk 0:01:30]}  Bxc3+ {[%clk 0:01:07]} 16. Qxc3 {[%clk 0:00:56]}  Rc5 {[%clk 0:01:04]} 17. Qxa5 {[%clk 0:00:49]}  Rxa5 {[%clk 0:01:04]} 18. a3 {[%clk 0:00:46]}  Ke7 {[%clk 0:01:04]} 19. Ke2 {[%clk 0:00:44]}  Rg8 {[%clk 0:01:01]} 20. g3 {[%clk 0:00:44]}  Rb5 {[%clk 0:00:58]} 21. Rc2 {[%clk 0:00:43]}  Rc8 {[%clk 0:00:55]} 22. Rhc1 {[%clk 0:00:43]}  Rd8 {[%clk 0:00:55]} 23. Nd2 {[%clk 0:00:39]}  a5 {[%clk 0:00:49]} 24. Ne4 {[%clk 0:00:37]}  Ra8 {[%clk 0:00:14]} 25. Nc3 {[%clk 0:00:34]}  Rc5 {[%clk 0:00:13]} 26. Na4 {[%clk 0:00:33]}  Rxc2+ {[%clk 0:00:13]} 27. Rxc2 {[%clk 0:00:34]}  Rc8 {[%clk 0:00:11]} 28. Rd2 {[%clk 0:00:24]}  Rc7 {[%clk 0:00:09]} 29. Nb6 {[%clk 0:00:20]}  Ke6 {[%clk 0:00:09]} 30. Nd5 {[%clk 0:00:16]}  Rd7 {[%clk 0:00:09]} 31. Nc3 {[%clk 0:00:15]}  Rc7 {[%clk 0:00:09]} 32. Nb5 {[%clk 0:00:14]}  Rc8 {[%clk 0:00:08]} 33. Nd6 {[%clk 0:00:13]}  Rc7 {[%clk 0:00:06]} 34. Ne4 {[%clk 0:00:12]}  Ke7 {[%clk 0:00:05]} 35. Nd6 {[%clk 0:00:11]}  Ke6 {[%clk 0:00:05]} 36. Nb5 {[%clk 0:00:10]}  Rc8 {[%clk 0:00:05]} 37. h3 {[%clk 0:00:08]}  Ke7 {[%clk 0:00:05]} 38. Nd6 {[%clk 0:00:07]}  Rb8 {[%clk 0:00:05]} 39. Nf5+ {[%clk 0:00:06]}  Ke6 {[%clk 0:00:05]} 40. g4 {[%clk 0:00:07]}  Rd8 {[%clk 0:00:04]} 41. Rxd8 {[%clk 0:00:07]}  Nxd8 {[%clk 0:00:05]} 42. Kd3 {[%clk 0:00:07]}  Nc6 {[%clk 0:00:04]} 43. Kc4 {[%clk 0:00:08]}  e4 {[%clk 0:00:04]} 44. Kc5 {[%clk 0:00:07]}  Ne5 {[%clk 0:00:04]} 45. Kb6 {[%clk 0:00:07]}  Nc4+ {[%clk 0:00:05]} 46. Kxb7 {[%clk 0:00:07]}  Nxb2 {[%clk 0:00:05]} 47. Ka6 {[%clk 0:00:07]}  a4 {[%clk 0:00:05]} 48. Kb5 {[%clk 0:00:07]}  Ke5 {[%clk 0:00:05]} 49. Kb4 {[%clk 0:00:07]}  Kd5 {[%clk 0:00:04]} 50. Kc3 {[%clk 0:00:06]}  Nd1+ {[%clk 0:00:05]} 51. Kb4 {[%clk 0:00:07]}  Nxf2 {[%clk 0:00:05]} 52. Kxa4 {[%clk 0:00:07]}  Nxh3 {[%clk 0:00:06]} 53. Kb5 {[%clk 0:00:07]}  Nf2 {[%clk 0:00:04]} 54. a4 {[%clk 0:00:07]}  Nxg4 {[%clk 0:00:02]} 55. a5 {[%clk 0:00:08]}  Ne5 {[%clk 0:00:03]} 56. a6 {[%clk 0:00:08]}  Nc6 {[%clk 0:00:02]} 57. Ne7+ {[%clk 0:00:06]}  Nxe7 {[%clk 0:00:03]} 58. a7 {[%clk 0:00:06]}  Ke5 {[%clk 0:00:03]} 59. a8=Q {[%clk 0:00:06]}  Nd5 {[%clk 0:00:03]} 60. Kc5 {[%clk 0:00:05]}  Nxe3 {[%clk 0:00:03]} 61. Qe8+ {[%clk 0:00:05]}  Kf5 {[%clk 0:00:04]} 62. Qd7+ {[%clk 0:00:05]}  Kf4 {[%clk 0:00:04]} 63. Qxf7 {[%clk 0:00:04]}  f5 {[%clk 0:00:04]} 64. Qc7+ {[%clk 0:00:03]}  Kf3 {[%clk 0:00:04]} 65. Qxh7 {[%clk 0:00:04]}  Ng4 {[%clk 0:00:04]} 66. Qxf5+ {[%clk 0:00:04]} 1-0


[Site "https://www.chess.com"]

[Event "Titled Tuesday Blitz January 10 Early 2023"]
[White "Vokhidov, Shamsiddin"]
[Black "Samadov, Read"]
[WhiteFideId "14204223"]
[BlackFideId "13417444"]
[WhiteElo "2586"]
[BlackElo "2469"]
[Result "0-1"]
[Round "07"]
[TimeControl "180+2"]
[Date "2023.01.10"]
[WhiteClock "0:00:04"]
[BlackClock "0:00:14"]

1. e4 {[%clk 0:03:00]}  c5 {[%clk 0:02:59]} 2. Nf3 {[%clk 0:03:01]}  d6 {[%clk 0:03:00]} 3. Bb5+ {[%clk 0:03:00]}  Nd7 {[%clk 0:02:59]} 4. a4 {[%clk 0:02:59]}  Nf6 {[%clk 0:02:58]} 5. Nc3 {[%clk 0:03:00]}  g6 {[%clk 0:02:55]} 6. O-O {[%clk 0:02:59]}  Bg7 {[%clk 0:02:55]} 7. d4 {[%clk 0:02:59]}  cxd4 {[%clk 0:02:54]} 8. Nxd4 {[%clk 0:03:00]}  O-O {[%clk 0:02:55]} 9. Be3 {[%clk 0:03:00]}  a6 {[%clk 0:02:52]} 10. Be2 {[%clk 0:02:59]}  Nc5 {[%clk 0:02:49]} 11. f3 {[%clk 0:02:59]}  Bd7 {[%clk 0:02:49]} 12. Qd2 {[%clk 0:03:00]}  Rc8 {[%clk 0:02:49]} 13. a5 {[%clk 0:03:00]}  Re8 {[%clk 0:02:43]} 14. Rfd1 {[%clk 0:03:00]}  Ne6 {[%clk 0:02:37]} 15. Nb3 {[%clk 0:02:58]}  Bc6 {[%clk 0:02:32]} 16. Bf1 {[%clk 0:02:58]}  Qd7 {[%clk 0:02:28]} 17. Nd5 {[%clk 0:02:50]}  Bxd5 {[%clk 0:02:18]} 18. exd5 {[%clk 0:02:51]}  Nc5 {[%clk 0:02:16]} 19. Nxc5 {[%clk 0:02:51]}  dxc5 {[%clk 0:02:16]} 20. Bc4 {[%clk 0:02:51]}  Red8 {[%clk 0:02:12]} 21. Qe2 {[%clk 0:02:45]}  Ne8 {[%clk 0:02:10]} 22. c3 {[%clk 0:02:42]}  Nd6 {[%clk 0:02:09]} 23. Rd2 {[%clk 0:02:28]}  h5 {[%clk 0:02:03]} 24. Bg5 {[%clk 0:02:23]}  Bf6 {[%clk 0:01:59]} 25. Bf4 {[%clk 0:02:22]}  Kg7 {[%clk 0:01:55]} 26. Bb3 {[%clk 0:02:04]}  Qf5 {[%clk 0:01:45]} 27. Be3 {[%clk 0:02:03]}  h4 {[%clk 0:01:41]} 28. Bc2 {[%clk 0:01:59]}  Qh5 {[%clk 0:01:37]} 29. Re1 {[%clk 0:01:55]}  Re8 {[%clk 0:01:31]} 30. Rdd1 {[%clk 0:01:52]}  Bg5 {[%clk 0:01:14]} 31. Ba4 {[%clk 0:01:18]}  Red8 {[%clk 0:00:28]} 32. Bxg5 {[%clk 0:01:15]}  Qxg5 {[%clk 0:00:29]} 33. Qxe7 {[%clk 0:01:16]}  Qxe7 {[%clk 0:00:24]} 34. Rxe7 {[%clk 0:01:17]}  Kf6 {[%clk 0:00:23]} 35. Rde1 {[%clk 0:01:11]}  c4 {[%clk 0:00:24]} 36. f4 {[%clk 0:00:33]}  Rc5 {[%clk 0:00:23]} 37. Bd1 {[%clk 0:00:34]}  Rxa5 {[%clk 0:00:22]} 38. Bf3 {[%clk 0:00:34]}  Rb5 {[%clk 0:00:21]} 39. R7e2 {[%clk 0:00:34]}  Rd7 {[%clk 0:00:19]} 40. g4 {[%clk 0:00:33]}  hxg3 {[%clk 0:00:19]} 41. hxg3 {[%clk 0:00:34]}  Rb3 {[%clk 0:00:17]} 42. Kf2 {[%clk 0:00:28]}  a5 {[%clk 0:00:17]} 43. Ra1 {[%clk 0:00:27]}  b6 {[%clk 0:00:17]} 44. g4 {[%clk 0:00:25]}  g5 {[%clk 0:00:17]} 45. Kg3 {[%clk 0:00:24]}  gxf4+ {[%clk 0:00:14]} 46. Kxf4 {[%clk 0:00:25]}  Kg7 {[%clk 0:00:14]} 47. Rh2 {[%clk 0:00:23]}  Ne8 {[%clk 0:00:13]} 48. Bd1 {[%clk 0:00:22]}  Rxd5 {[%clk 0:00:11]} 49. Bxb3 {[%clk 0:00:22]}  cxb3 {[%clk 0:00:11]} 50. Rah1 {[%clk 0:00:19]}  Nd6 {[%clk 0:00:11]} 51. Rh7+ {[%clk 0:00:18]}  Kf8 {[%clk 0:00:11]} 52. Rh8+ {[%clk 0:00:17]}  Ke7 {[%clk 0:00:11]} 53. Re1+ {[%clk 0:00:13]}  Kd7 {[%clk 0:00:12]} 54. Rb8 {[%clk 0:00:12]}  Kc7 {[%clk 0:00:12]} 55. Rf8 {[%clk 0:00:09]}  Rd2 {[%clk 0:00:12]} 56. Rb1 {[%clk 0:00:09]}  a4 {[%clk 0:00:13]} 57. g5 {[%clk 0:00:09]}  b5 {[%clk 0:00:12]} 58. Ke5 {[%clk 0:00:08]}  Nc4+ {[%clk 0:00:12]} 59. Kf6 {[%clk 0:00:08]}  Rf2+ {[%clk 0:00:11]} 60. Kg7 {[%clk 0:00:08]}  Nxb2 {[%clk 0:00:11]} 61. Rxf7+ {[%clk 0:00:08]}  Rxf7+ {[%clk 0:00:12]} 62. Kxf7 {[%clk 0:00:09]}  a3 {[%clk 0:00:12]} 63. g6 {[%clk 0:00:09]}  a2 {[%clk 0:00:13]} 64. Ra1 {[%clk 0:00:07]}  Nc4 {[%clk 0:00:13]} 65. g7 {[%clk 0:00:07]}  b2 {[%clk 0:00:13]} 66. Rxa2 {[%clk 0:00:05]}  b1=Q {[%clk 0:00:13]} 67. Ra7+ {[%clk 0:00:04]}  Kb6 {[%clk 0:00:13]} 68. g8=Q {[%clk 0:00:04]}  Qf5+ {[%clk 0:00:13]} 69. Ke8 {[%clk 0:00:03]}  Qc8+ {[%clk 0:00:13]} 70. Kf7 {[%clk 0:00:03]}  Qxg8+ {[%clk 0:00:13]} 71. Kxg8 {[%clk 0:00:04]}  Kxa7 {[%clk 0:00:14]} 0-1


[Site "https://www.chess.com"]

[Event "Titled Tuesday Blitz January 10 Early 2023"]
[White "Svane, Rasmus"]
[Black "Boros, Denes"]
[WhiteFideId "4657101"]
[BlackFideId "722340"]
[WhiteElo "2623"]
[BlackElo "2406"]
[Result "1-0"]
[Round "07"]
[TimeControl "180+2"]
[Date "2023.01.10"]
[WhiteClock "0:00:05"]
[BlackClock "0:00:18"]

1. Nf3 {[%clk 0:03:00]}  g6 {[%clk 0:03:00]} 2. d4 {[%clk 0:02:58]}  Bg7 {[%clk 0:02:56]} 3. e4 {[%clk 0:02:56]}  Nc6 {[%clk 0:02:50]} 4. d5 {[%clk 0:02:54]}  Ne5 {[%clk 0:02:50]} 5. Nxe5 {[%clk 0:02:55]}  Bxe5 {[%clk 0:02:51]} 6. c4 {[%clk 0:02:52]}  c6 {[%clk 0:02:52]} 7. Nc3 {[%clk 0:02:52]}  d6 {[%clk 0:02:52]} 8. Bd3 {[%clk 0:02:50]}  Nf6 {[%clk 0:02:36]} 9. O-O {[%clk 0:02:46]}  O-O {[%clk 0:02:36]} 10. Kh1 {[%clk 0:02:43]}  Nd7 {[%clk 0:02:28]} 11. Bh6 {[%clk 0:02:41]}  Bg7 {[%clk 0:02:27]} 12. Bxg7 {[%clk 0:02:40]}  Kxg7 {[%clk 0:02:27]} 13. f4 {[%clk 0:02:31]}  Qb6 {[%clk 0:02:28]} 14. Qd2 {[%clk 0:02:29]}  Nc5 {[%clk 0:02:27]} 15. Be2 {[%clk 0:02:12]}  Bd7 {[%clk 0:02:27]} 16. f5 {[%clk 0:01:55]}  f6 {[%clk 0:02:25]} 17. Rab1 {[%clk 0:01:38]}  a5 {[%clk 0:02:25]} 18. Qf4 {[%clk 0:01:31]}  a4 {[%clk 0:02:17]} 19. Qg3 {[%clk 0:01:30]}  Be8 {[%clk 0:02:00]} 20. Qe3 {[%clk 0:01:15]}  Bf7 {[%clk 0:01:57]} 21. Bf3 {[%clk 0:01:12]}  Nd7 {[%clk 0:01:50]} 22. Qe2 {[%clk 0:00:53]}  Ne5 {[%clk 0:01:42]} 23. Rfc1 {[%clk 0:00:50]}  g5 {[%clk 0:01:25]} 24. Qf1 {[%clk 0:00:47]}  Qd4 {[%clk 0:01:20]} 25. Ne2 {[%clk 0:00:46]}  Qc5 {[%clk 0:01:14]} 26. Ng3 {[%clk 0:00:45]}  g4 {[%clk 0:01:08]} 27. Be2 {[%clk 0:00:44]}  Qe3 {[%clk 0:01:01]} 28. Rc3 {[%clk 0:00:44]}  Qg5 {[%clk 0:00:59]} 29. Qc1 {[%clk 0:00:32]}  Rfc8 {[%clk 0:00:48]} 30. Nf1 {[%clk 0:00:27]}  h5 {[%clk 0:00:38]} 31. Kg1 {[%clk 0:00:24]}  Rc7 {[%clk 0:00:31]} 32. Qxg5+ {[%clk 0:00:23]}  fxg5 {[%clk 0:00:32]} 33. Ne3 {[%clk 0:00:24]}  Kf6 {[%clk 0:00:28]} 34. Kf2 {[%clk 0:00:24]}  Ra5 {[%clk 0:00:27]} 35. Ke1 {[%clk 0:00:23]}  Nd7 {[%clk 0:00:24]} 36. Bd3 {[%clk 0:00:20]}  Nc5 {[%clk 0:00:23]} 37. Bc2 {[%clk 0:00:20]}  Ke5 {[%clk 0:00:23]} 38. Nf1 {[%clk 0:00:16]}  Ra6 {[%clk 0:00:20]} 39. Re3 {[%clk 0:00:15]}  Rb6 {[%clk 0:00:20]} 40. Nd2 {[%clk 0:00:15]}  Rb4 {[%clk 0:00:20]} 41. Ke2 {[%clk 0:00:13]}  Nd7 {[%clk 0:00:20]} 42. b3 {[%clk 0:00:13]}  a3 {[%clk 0:00:18]} 43. h3 {[%clk 0:00:10]}  gxh3 {[%clk 0:00:18]} 44. Rxh3 {[%clk 0:00:11]}  g4 {[%clk 0:00:18]} 45. Re3 {[%clk 0:00:09]}  Kf6 {[%clk 0:00:18]} 46. g3 {[%clk 0:00:10]}  Ne5 {[%clk 0:00:18]} 47. Rh1 {[%clk 0:00:10]}  b5 {[%clk 0:00:19]} 48. cxb5 {[%clk 0:00:09]}  cxd5 {[%clk 0:00:19]} 49. Kd1 {[%clk 0:00:05]}  d4 {[%clk 0:00:19]} 50. Ree1 {[%clk 0:00:06]}  d3 {[%clk 0:00:18]} 51. Bb1 {[%clk 0:00:07]}  Rxb5 {[%clk 0:00:18]} 52. Re3 {[%clk 0:00:02]}  Rbc5 {[%clk 0:00:18]} 53. Nc4 {[%clk 0:00:03]}  Bxc4 {[%clk 0:00:18]} 54. bxc4 {[%clk 0:00:04]}  Rxc4 {[%clk 0:00:19]} 55. Kd2 {[%clk 0:00:04]}  Rd4 {[%clk 0:00:17]} 56. Bxd3 {[%clk 0:00:03]}  Nc4+ {[%clk 0:00:18]} 57. Ke2 {[%clk 0:00:04]}  Nxe3 {[%clk 0:00:19]} 58. Kxe3 {[%clk 0:00:05]}  Ke5 {[%clk 0:00:18]} 59. Rxh5 {[%clk 0:00:05]}  Rb4 {[%clk 0:00:18]} 60. Rh6 {[%clk 0:00:04]}  Rxe4+ {[%clk 0:00:15]} 61. Bxe4 {[%clk 0:00:05]}  Rc3+ {[%clk 0:00:15]} 62. Bd3 {[%clk 0:00:06]}  Kd5 {[%clk 0:00:13]} 63. Re6 {[%clk 0:00:06]}  Rc1 {[%clk 0:00:14]} 64. Rxe7 {[%clk 0:00:05]}  Re1+ {[%clk 0:00:14]} 65. Be2 {[%clk 0:00:05]}  Rg1 {[%clk 0:00:14]} 66. Bxg4 {[%clk 0:00:04]}  Rxg3+ {[%clk 0:00:14]} 67. Bf3+ {[%clk 0:00:04]}  Kc5 {[%clk 0:00:13]} 68. f6 {[%clk 0:00:05]}  Rg6 {[%clk 0:00:13]} 69. f7 {[%clk 0:00:05]}  Rf6 {[%clk 0:00:14]} 70. Bh5 {[%clk 0:00:05]}  d5 {[%clk 0:00:15]} 71. Re8 {[%clk 0:00:05]}  d4+ {[%clk 0:00:16]} 72. Ke4 {[%clk 0:00:04]}  Rf1 {[%clk 0:00:17]} 73. f8=Q+ {[%clk 0:00:04]}  Rxf8 {[%clk 0:00:17]} 74. Rxf8 {[%clk 0:00:05]}  Kc4 {[%clk 0:00:18]} 75. Rc8+ {[%clk 0:00:05]} 1-0


[Site "https://www.chess.com"]